{"text_format":"2","workbook":"xlsx","n_sheets":3,"sheets":["Sheet1","Sheet2","Sheet3"],"not_rendered":{"charts":0,"images":0,"macros":0,"external_links":0,"defined_names":0,"comments":0,"pivot_tables":0},"unopened":[],"bounds":{"document_bytes":16777216,"sheet_cells":100000,"run_cost":"one","rows_first":2000,"rows_last":500,"rows_between":2000,"halvings":0,"cell_chars":16384,"cell_head_chars":4096},"cells_cut":0,"cells_raw":0,"read":"whole","date_system":"1900"}

{"sheet":"Sheet1","index":0,"n_rows":36,"n_cols":9,"rows_kept":36,"cut":false,"hidden":false,"merged":[[0,0,0,8],[1,0,1,8],[2,0,2,8],[3,0,3,8],[20,0,20,5],[21,0,21,8],[26,0,26,5],[27,0,27,8],[30,0,30,5],[31,0,31,5],[31,6,31,8],[32,0,32,8],[33,2,33,3],[33,4,33,5],[33,7,33,8],[34,2,34,3],[34,4,34,5],[34,7,34,8],[35,2,35,3],[35,4,35,5],[35,7,35,8],[33,0,35,0]]}
["梅州昌盛豪生大酒店节能改造每日能耗统计表"]
["  {date}   "]
["最低气温：{minTemp}℃，最高气温：{maxTemp}℃ ，      "]
[]
["名称","位置","编号","昨日读数","今日读数","倍率","合计","单价","费用"]
["电表","{data1.location}",null,"{data1.yesterdayReading}","{data1.todayReading}",1,{"$f":"(E6-D6)*F6","v":{"$error":"#VALUE!"}},"{data1.unitPrice}",{"$f":"G6*H6","v":{"$error":"#VALUE!"}}]
["电表","{data2.location}",null,"{data2.yesterdayReading}","{data2.todayReading}",1,{"$error":"#VALUE!"},"{data2.unitPrice}",{"$error":"#VALUE!"}]
["电表","{data3.location}",null,"{data3.yesterdayReading}","{data3.todayReading}",1,{"$error":"#VALUE!"},"{data3.unitPrice}",{"$error":"#VALUE!"}]
["电表","{data4.location}",null,"{data4.yesterdayReading}","{data4.todayReading}",1,{"$error":"#VALUE!"},"{data4.unitPrice}",{"$error":"#VALUE!"}]
["电表","{data5.location}",null,"{data5.yesterdayReading}","{data5.todayReading}",1,{"$error":"#VALUE!"},"{data5.unitPrice}",{"$error":"#VALUE!"}]
["电表","{data6.location}",null,"{data6.yesterdayReading}","{data6.todayReading}",1,{"$error":"#VALUE!"},"{data6.unitPrice}",{"$error":"#VALUE!"}]
["电表","{data7.location}",null,"{data7.yesterdayReading}","{data7.todayReading}",1,{"$error":"#VALUE!"},"{data7.unitPrice}",{"$error":"#VALUE!"}]
["电表","{data8.location}",null,"{data8.yesterdayReading}","{data8.todayReading}",1,{"$error":"#VALUE!"},"{data8.unitPrice}",{"$error":"#VALUE!"}]
["电表","{data9.location}",null,"{data9.yesterdayReading}","{data9.todayReading}",1,{"$error":"#VALUE!"},"{data9.unitPrice}",{"$error":"#VALUE!"}]
["电表","{data10.location}",null,"{data10.yesterdayReading}","{data10.todayReading}",1,{"$error":"#VALUE!"},"{data10.unitPrice}",{"$error":"#VALUE!"}]
["电表","{data11.location}",null,"{data11.yesterdayReading}","{data11.todayReading}",1,{"$error":"#VALUE!"},"{data11.unitPrice}",{"$error":"#VALUE!"}]
["电表","{data12.location}",null,"{data12.yesterdayReading}","{data12.todayReading}",1,{"$error":"#VALUE!"},"{data12.unitPrice}",{"$error":"#VALUE!"}]
["电表","{data13.location}",null,"{data13.yesterdayReading}","{data13.todayReading}",1,{"$error":"#VALUE!"},"{data13.unitPrice}",{"$error":"#VALUE!"}]
["电表","{data14.location}",null,"{data14.yesterdayReading}","{data14.todayReading}",1,{"$error":"#VALUE!"},"{data14.unitPrice}",{"$error":"#VALUE!"}]
["电表","{data15.location}",null,"{data15.yesterdayReading}","{data15.todayReading}",1,{"$error":"#VALUE!"},"{data15.unitPrice}",{"$error":"#VALUE!"}]
["空调系统用电总合计：",{"$nulls":5},{"$f":"SUM(G6:G20)","v":{"$error":"#VALUE!"}},"{data16.unitPrice}",{"$f":"SUM(I6:I20)","v":{"$error":"#VALUE!"}}]
[]
["电表","{data17.location}","{data17.mtNum}","{data17.yesterdayReading}","{data17.todayReading}",80,{"$f":"(E23-D23)*F23","v":{"$error":"#VALUE!"}},"{data17.unitPrice}",{"$f":"G23*H23","v":{"$error":"#VALUE!"}}]
["电表","{data18.location}","{data18.mtNum}","{data18.yesterdayReading}","{data18.todayReading}",20,{"$error":"#VALUE!"},"{data18.unitPrice}",{"$error":"#VALUE!"}]
["电表","{data19.location}","{data19.mtNum}","{data19.yesterdayReading}","{data19.todayReading}",20,{"$error":"#VALUE!"},"{data19.unitPrice}",{"$error":"#VALUE!"}]
["电表","{data20.location}","{data20.mtNum}","{data20.yesterdayReading}","{data20.todayReading}",20,{"$error":"#VALUE!"},"{data20.unitPrice}",{"$error":"#VALUE!"}]
["热水热泵系统用电总合计：",{"$nulls":5},{"$f":"G23+G24+G25+G26","v":{"$error":"#VALUE!"}},"{data21.unitPrice}",{"$f":"I23+I24+I25+I26","v":{"$error":"#VALUE!"}}]
[]
["水表","{data22.location}","{data22.mtNum}","{data22.yesterdayReading}","{data22.todayReading}",1,{"$f":"E29-D29","v":{"$error":"#VALUE!"}},"{data22.unitPrice}",{"$f":"G29*H29","v":{"$error":"#VALUE!"}}]
["水表","{data23.location}","{data23.mtNum}","{data23.yesterdayReading}","{data23.todayReading}",1,{"$f":"E30-D30","v":{"$error":"#VALUE!"}},"{data23.unitPrice}",{"$f":"G30*H30","v":{"$error":"#VALUE!"}}]
["热水热泵系统用水总合计:",{"$nulls":5},{"$f":"G29+G30","v":{"$error":"#VALUE!"}},"{data24.unitPrice}",{"$f":"I29+I30","v":{"$error":"#VALUE!"}}]
["水、电、气费用总合计（水/电/气价预估单价,单价需以实际缴费为准）：",{"$nulls":5},{"$f":"I21++I27+I31","v":{"$error":"#VALUE!"}}]
[]
["流量计量表","分项","昨日冷量/流量",null,"今日冷量/流量",null,"用量","备注"]
[null,"{data26.location}","{data26.yesterdayReading}",null,"{data26.todayReading}",null,{"$f":"E35-C35","v":{"$error":"#VALUE!"}}]
[null,"{data27.location}","{data27.yesterdayReading}",null,"{data27.todayReading}",null,{"$f":"E36-C36","v":{"$error":"#VALUE!"}}]

{"sheet":"Sheet2","index":1,"n_rows":0,"n_cols":0,"rows_kept":0,"cut":false,"hidden":false,"merged":[]}

{"sheet":"Sheet3","index":2,"n_rows":0,"n_cols":0,"rows_kept":0,"cut":false,"hidden":false,"merged":[]}